fUST/lending_fUST_20250219
["ID","MTS","AMOUNT","RATE_DAILY","PERIOD"]
[353560554,1739914252299,-500.0,0.00014849,2]
[353560555,1739914252309,-500.0,0.00014849,2]
[353560556,1739914252319,-521.98,0.00014849,2]
[353560557,1739914252328,-500.0,0.00014849,2]
[353560558,1739914252338,-500.0,0.00014849,2]
[353560559,1739914252348,-772.18,0.00014849,2]
[353560560,1739914252358,-500.0,0.00014849,2]
[353560561,1739914252368,-500.0,0.00014849,2]
[353560562,1739914252377,-506.94,0.00014849,2]
[353560563,1739914252387,-500.0,0.00014849,2]
[353560564,1739914252398,-542.51,0.00014849,2]
[353560565,1739914252408,-681.41,0.00014849,2]
[353560566,1739914252418,-975.67,0.00014849,2]
[353560567,1739914252428,-500.0,0.00014849,2]
[353560568,1739914252438,-546.38,0.00014849,2]
[353560569,1739914252447,-500.0,0.00014849,2]
[353560570,1739914252456,-500.0,0.00014849,2]
[353560571,1739914252466,-500.0,0.00014849,2]
[353560572,1739914252476,-1280.38,0.00014849,2]
[353560573,1739914252486,-267.607392,0.00014849,2]
[353560574,1739914252495,-703.38,0.00014849,2]
[353560575,1739914252506,-614.31,0.00014849,2]
[353560576,1739914252515,-267.607392,0.00014849,2]
[353560577,1739914252525,-737.48,0.00014849,2]
[353560578,1739914252534,-622.56,0.00014849,2]
[353560579,1739914252543,-26318.55,0.00014849,2]
[353560580,1739914252553,-1068.88,0.00014849,2]
[353560581,1739914252562,-700.06,0.00014849,2]
[353560582,1739914252571,-723.02,0.00014849,2]
[353560583,1739914252581,-500.0,0.00014849,2]
[353560584,1739914252591,-1820.28,0.00014849,2]
[353560585,1739914252601,-500.0,0.00014849,2]
[353560586,1739914252611,-3155.81,0.00014849,2]
[353560587,1739914252620,-2563.76,0.00014849,2]
[353560588,1739914252629,-1715.22,0.00014849,2]
[353560589,1739914252639,-1599.57,0.00014849,2]
[353560590,1739914252649,-8846.61,0.00014849,2]
[353560591,1739914252659,-1738.43,0.00014849,2]
[353560592,1739914252669,-500.0,0.00014849,2]
[353560593,1739914252679,-500.0,0.00014849,2]
[353560594,1739914252689,-807.83,0.00014849,2]
[353560595,1739914252699,-753.92,0.00014849,2]
[353560596,1739914252709,-500.0,0.00014849,2]
[353560597,1739914252719,-500.0,0.00014849,2]
[353560598,1739914252729,-599.33,0.00014849,2]
[353560599,1739914252738,-500.0,0.00014849,2]
[353560600,1739914252747,-781.09,0.00014849,2]
[353560601,1739914252757,-837.18,0.00014849,2]
[353560602,1739914252766,-500.0,0.00014873,2]
[353560603,1739914252776,-151.0,0.000149,2]
[353560604,1739914252787,-3352.20477158,0.000149,2]
[353560605,1739914252803,-151.0,0.000149,2]
[353560606,1739914252818,-151.0,0.000149,2]
[353560607,1739914252830,-151.0,0.000149,2]
[353560608,1739914252844,-344393.492702,0.000149,2]
[353560609,1739914252860,-10077.14434103,0.000149,2]
[353560610,1739914252875,-154.162394,0.000149,2]
[353560611,1739914252889,-500.0,0.00014931,2]
[353560612,1739914252904,-500.0,0.00014931,2]
[353560613,1739914252918,-1064.25,0.00014931,2]
[353560614,1739914252933,-500.0,0.00014931,2]
[353560615,1739914252946,-643.08,0.00014931,2]
[353560616,1739914252960,-500.0,0.00014931,2]
[353560617,1739914252973,-500.0,0.00014931,2]
[353560618,1739914252986,-816.32,0.00014931,2]
[353560619,1739914252998,-500.0,0.00014931,2]
[353560620,1739914253011,-500.0,0.00014931,2]
[353560621,1739914253028,-521.98,0.00014931,2]
[353560622,1739914253043,-500.0,0.00014931,2]
[353560623,1739914253057,-500.0,0.00014931,2]
[353560624,1739914253074,-772.18,0.00014931,2]
[353560625,1739914253089,-500.0,0.00014931,2]
[353560626,1739914253101,-500.0,0.00014931,2]
[353560627,1739914253112,-506.94,0.00014931,2]
[353560628,1739914253127,-500.0,0.00014931,2]
[353560629,1739914253142,-681.41,0.00014931,2]
[353560630,1739914253157,-975.67,0.00014931,2]
[353560631,1739914253169,-500.0,0.00014931,2]
[353560632,1739914253182,-546.38,0.00014931,2]
[353560633,1739914253195,-500.0,0.00014931,2]
[353560634,1739914253206,-647.121979,0.00014931,2]
[353560635,1739914253218,-500.0,0.00014931,2]
[353560636,1739914253231,-647.121979,0.00014931,2]
[353560637,1739914253243,-500.0,0.00014931,2]
[353560638,1739914253255,-1280.38,0.00014931,2]
[353560639,1739914253267,-703.38,0.00014931,2]
[353560640,1739914253279,-614.31,0.00014931,2]
[353560641,1739914253291,-737.48,0.00014931,2]
[353560642,1739914253302,-622.56,0.00014931,2]
[353560643,1739914253314,-26318.55,0.00014931,2]
[353560644,1739914253326,-1068.88,0.00014931,2]
[353560645,1739914253339,-700.06,0.00014931,2]
[353560646,1739914253351,-723.02,0.00014931,2]
[353560647,1739914253363,-500.0,0.00014931,2]
[353560648,1739914253376,-1820.28,0.00014931,2]
[353560649,1739914253388,-500.0,0.00014931,2]
[353560650,1739914253403,-3155.81,0.00014931,2]
[353560651,1739914253415,-2563.76,0.00014931,2]
[353560652,1739914253427,-1715.22,0.00014931,2]
[353560653,1739914253440,-1599.57,0.00014931,2]
[353560654,1739914253452,-8846.61,0.00014931,2]
[353560655,1739914253465,-1738.43,0.00014931,2]
[353560656,1739914253478,-500.0,0.00014931,2]
[353560657,1739914253491,-500.0,0.00014931,2]
[353560658,1739914253503,-807.83,0.00014931,2]
[353560659,1739914253513,-753.92,0.00014931,2]
[353560660,1739914253523,-500.0,0.00014931,2]
[353560661,1739914253533,-500.0,0.00014931,2]
[353560662,1739914253542,-599.33,0.00014931,2]
[353560663,1739914253552,-500.0,0.00014931,2]
[353560664,1739914253561,-781.09,0.00014931,2]
[353560665,1739914253571,-837.18,0.00014931,2]
[353560666,1739914253580,-194.3337172,0.00014958,2]
[353560667,1739914253590,-153.0,0.00014958,2]
[353560668,1739914253600,-153.0,0.00014958,2]
[353560669,1739914253610,-418.8992869,0.0001496,2]
[353560670,1739914253620,-310.6491906,0.0001496,2]
[353560671,1739914253630,-431.6152744,0.0001496,2]
[353560672,1739914253640,-434.48868724,0.00014999,2]
[353560673,1739914253652,-91294.23453963,0.00015,2]
[353560674,1739914253663,-1146897.55,0.00015,10]
[353560675,1739914253672,-151.0,0.00015,2]
[353560676,1739914253682,-209.080635,0.00015,2]
[353560677,1739914253691,-647.121979,0.00015,2]
[353560678,1739914253700,-647.121979,0.00015,2]
[353560679,1739914253711,-267.607392,0.00015,2]
[353560680,1739914253720,-267.607392,0.00015,2]
[353560681,1739914253730,-151.0,0.00015,2]
[353560682,1739914253739,-6389.66889638,0.00015,3]
[353560683,1739914253749,-420.0,0.00015009,2]
[353560684,1739914253921,-316.26,0.00015013,2]
[353560685,1739914253938,-500.0,0.00015013,2]
[353560686,1739914253949,-1064.25,0.00015013,2]
[353560687,1739914253959,-88.65088202,0.00015013,2]
[353560688,1739914256932,-504.09771672,0.00013698,2]
[353560689,1739914256942,-500.0,0.00013945,2]
[353560690,1739914256951,-500.0,0.00014027,2]
[353560691,1739914256961,-342.97,0.00014109,2]
[353560692,1739914256970,-236.64,0.00014438,2]
[353560693,1739914256979,-983.07,0.00014684,2]
[353560694,1739914257093,-983.07,0.00014767,2]
[353560695,1739914257104,-983.07,0.00014849,2]
[353560696,1739914257113,-983.07,0.00014931,2]
[353560697,1739914257123,-411.34911798,0.00015013,2]
[353560698,1739914257133,-643.08,0.00015013,2]
[353560699,1739914257142,-500.0,0.00015013,2]
[353560700,1739914257151,-150.27,0.00015013,2]
[353560701,1739914257162,-253.62,0.00015013,2]
[353560702,1739914257172,-816.32,0.00015013,2]
[353560703,1739914257181,-500.0,0.00015013,2]
[353560704,1739914257191,-500.0,0.00015013,2]
[353560705,1739914257201,-521.98,0.00015013,2]
[353560706,1739914257210,-500.0,0.00015013,2]
[353560707,1739914257220,-500.0,0.00015013,2]
[353560708,1739914257229,-772.18,0.00015013,2]
[353560709,1739914257239,-500.0,0.00015013,2]
[353560710,1739914257248,-432.65909676,0.00015013,2]
[353560711,1739914257257,-506.94,0.00015013,2]
[353560712,1739914257267,-500.0,0.00015013,2]
[353560713,1739914257276,-975.67,0.00015013,2]
[353560714,1739914257286,-500.0,0.00015013,2]
[353560715,1739914257296,-546.38,0.00015013,2]
[353560716,1739914257305,-500.0,0.00015013,2]
[353560717,1739914257314,-500.0,0.00015013,2]
[353560718,1739914257324,-500.0,0.00015013,2]
[353560719,1739914257333,-150.27,0.00015013,2]
[353560720,1739914257343,-150.27,0.00015013,2]
[353560721,1739914257352,-300.16136656,0.00015013,2]
[353560722,1739914257362,-150.27,0.00015013,2]
[353560723,1739914257371,-500.0,0.00015013,2]
[353560724,1739914257380,-1280.38,0.00015013,2]
[353560725,1739914257390,-703.38,0.00015013,2]
[353560726,1739914257400,-614.31,0.00015013,2]
[353560727,1739914257411,-737.48,0.00015013,2]
[353560728,1739914257420,-622.56,0.00015013,2]
[353560729,1739914257430,-4008.51262205,0.00015013,2]
[353560730,1739914257442,-22310.03737795,0.00015013,2]
[353560731,1739914257451,-1068.88,0.00015013,2]
[353560732,1739914257460,-700.06,0.00015013,2]
[353560733,1739914257470,-723.02,0.00015013,2]
[353560734,1739914257479,-500.0,0.00015013,2]
[353560735,1739914257488,-500.0,0.00015013,2]
[353560736,1739914257498,-500.0,0.00015013,2]
[353560737,1739914257507,-150.27,0.00015013,2]
[353560738,1739914257518,-217.72891801,0.00015013,2]
[353560739,1739914257528,-1820.28,0.00015013,2]
[353560740,1739914257538,-500.0,0.00015013,2]
[353560741,1739914257548,-500.0,0.00015013,2]
[353560742,1739914257557,-3155.81,0.00015013,2]
[353560743,1739914257567,-500.0,0.00015013,2]
[353560744,1739914257577,-2563.76,0.00015013,2]
[353560745,1739914257586,-150.27,0.00015013,2]
[353560746,1739914257596,-500.0,0.00015013,2]
[353560747,1739914257605,-500.0,0.00015013,2]
[353560748,1739914257615,-1715.22,0.00015013,2]
[353560749,1739914257624,-1599.57,0.00015013,2]
[353560750,1739914257633,-8846.61,0.00015013,2]
[353560751,1739914257643,-1738.43,0.00015013,2]
[353560752,1739914257652,-396.38756905,0.00015013,2]
[353560753,1739914257663,-500.0,0.00015013,2]
[353560754,1739914257672,-807.83,0.00015013,2]
[353560755,1739914257682,-753.92,0.00015013,2]
[353560756,1739914257692,-500.0,0.00015013,2]
[353560757,1739914257702,-500.0,0.00015013,2]
[353560758,1739914257711,-599.33,0.00015013,2]
[353560759,1739914257721,-474.07140432,0.00015013,2]
[353560760,1739914257731,-781.09,0.00015013,2]
[353560761,1739914257741,-837.18,0.00015013,2]
[353560762,1739914257750,-983.07,0.00015013,2]
[353560763,1739914257759,-1424.00008562,0.00015036,2]
[353560764,1739914257768,-465.0051695,0.00015042,2]
[353560765,1739914257778,-151.0,0.00015092,2]
[353560766,1739914257787,-1064.25,0.00015095,2]
[353560767,1739914257797,-500.0,0.00015095,2]
[353560768,1739914257806,-643.08,0.00015095,2]
[353560769,1739914257815,-500.0,0.00015095,2]
[353560770,1739914257824,-816.32,0.00015095,2]
[353560771,1739914257834,-500.0,0.00015095,2]
[353560772,1739914257843,-500.0,0.00015095,2]
[353560773,1739914257853,-521.98,0.00015095,2]
[353560774,1739914257862,-500.0,0.00015095,2]
[353560775,1739914257872,-500.0,0.00015095,2]
[353560776,1739914257882,-772.18,0.00015095,2]
[353560777,1739914257891,-500.0,0.00015095,2]
[353560778,1739914257901,-506.94,0.00015095,2]
[353560779,1739914257912,-500.0,0.00015095,2]
[353560780,1739914257921,-975.67,0.00015095,2]
[353560781,1739914257931,-341.48,0.00015095,2]
[353560782,1739914257940,-546.38,0.00015095,2]
[353560783,1739914257950,-500.0,0.00015095,2]
[353560784,1739914257958,-1280.38,0.00015095,2]
[353560785,1739914257968,-703.38,0.00015095,2]
[353560786,1739914257980,-614.31,0.00015095,2]
[353560787,1739914257990,-737.48,0.00015095,2]
[353560788,1739914257999,-622.56,0.00015095,2]
[353560789,1739914258008,-26318.55,0.00015095,2]
[353560790,1739914258018,-1068.88,0.00015095,2]
[353560791,1739914258032,-700.06,0.00015095,2]
[353560792,1739914258041,-723.02,0.00015095,2]
[353560793,1739914258051,-500.0,0.00015095,2]
[353560794,1739914258060,-1820.28,0.00015095,2]
[353560795,1739914258070,-500.0,0.00015095,2]
[353560796,1739914258080,-2563.76,0.00015095,2]
[353560797,1739914258089,-3155.81,0.00015095,2]
[353560798,1739914258099,-1715.22,0.00015095,2]
[353560799,1739914258109,-1599.57,0.00015095,2]
[353560800,1739914258119,-731.59027517,0.00015095,2]
[353560801,1739914258131,-8115.01972483,0.00015095,2]
[353560802,1739914258141,-1738.43,0.00015095,2]
[353560803,1739914258151,-500.0,0.00015095,2]
[353560804,1739914258163,-807.83,0.00015095,2]
[353560805,1739914258171,-753.92,0.00015095,2]
[353560806,1739914258181,-500.0,0.00015095,2]
[353560807,1739914258190,-500.0,0.00015095,2]
[353560808,1739914258200,-599.33,0.00015095,2]
[353560809,1739914258210,-781.09,0.00015095,2]
[353560810,1739914258220,-837.18,0.00015095,2]
[353560811,1739914258230,-983.07,0.00015095,2]
[353560812,1739914258251,-168.26106217,0.00015123,2]
[353560813,1739914258272,-168.26106218,0.00015123,2]
[353560814,1739914258282,-1064.25,0.00015178,2]
[353560815,1739914258292,-500.0,0.00015178,2]
[353560816,1739914258301,-643.08,0.00015178,2]
[353560817,1739914258311,-500.0,0.00015178,2]
[353560818,1739914258321,-816.32,0.00015178,2]
[353560819,1739914258330,-500.0,0.00015178,2]
[353560820,1739914258339,-500.0,0.00015178,2]
[353560821,1739914258349,-521.98,0.00015178,2]
[353560822,1739914258359,-500.0,0.00015178,2]
[353560823,1739914258368,-558.60877134,0.00015178,2]
[353560824,1739914258378,-772.18,0.00015178,2]
[353560825,1739914258387,-500.0,0.00015178,2]
[353560826,1739914258396,-506.94,0.00015178,2]
[353560827,1739914258407,-500.0,0.00015178,2]
[353560828,1739914258416,-975.67,0.00015178,2]
[353560829,1739914258425,-182.79804654,0.00015178,2]
[353560830,1739914258437,-363.58195346,0.00015178,2]
[353560831,1739914258446,-500.0,0.00015178,2]
[353560832,1739914258456,-1280.38,0.00015178,2]
[353560833,1739914258466,-703.38,0.00015178,2]
[353560834,1739914258475,-614.31,0.00015178,2]
[353560835,1739914258484,-737.48,0.00015178,2]
[353560836,1739914258494,-622.56,0.00015178,2]
[353560837,1739914258504,-15652.71554205,0.00015178,2]
[353560838,1739914258516,-10665.83445795,0.00015178,2]
[353560839,1739914258525,-1068.88,0.00015178,2]
[353560840,1739914258535,-700.06,0.00015178,2]
[353560841,1739914258544,-723.02,0.00015178,2]
[353560842,1739914258554,-500.0,0.00015178,2]
[353560843,1739914258564,-1820.28,0.00015178,2]
[353560844,1739914258573,-422.52554205,0.00015178,2]
[353560845,1739914258585,-77.47445795,0.00015178,2]
[353560846,1739914258595,-2563.76,0.00015178,2]
[353560847,1739914258605,-3155.81,0.00015178,2]
[353560848,1739914258614,-1715.22,0.00015178,2]
[353560849,1739914258623,-1599.57,0.00015178,2]
[353560850,1739914258632,-8846.61,0.00015178,2]
[353560851,1739914258642,-1738.43,0.00015178,2]
[353560852,1739914258652,-466.54921665,0.00015178,2]
[353560853,1739914258663,-807.83,0.00015178,2]
[353560854,1739914258672,-753.92,0.00015178,2]
[353560855,1739914258682,-500.0,0.00015178,2]
[353560856,1739914258691,-500.0,0.00015178,2]
[353560857,1739914258701,-599.33,0.00015178,2]
[353560858,1739914258710,-781.09,0.00015178,2]
[353560859,1739914258719,-837.18,0.00015178,2]
[353560860,1739914258729,-983.07,0.00015178,2]
[353560861,1739914258738,-500.0,0.000152,7]
[353560862,1739914258748,-500.0,0.000152,7]
[353560863,1739914258757,-500.0,0.000152,7]
[353560864,1739914258767,-500.0,0.000152,7]
[353560865,1739914258777,-500.0,0.000152,7]
[353560866,1739914258786,-500.0,0.000152,7]
[353560867,1739914258795,-500.0,0.000152,7]
[353560868,1739914258804,-500.0,0.000152,7]
[353560869,1739914258813,-500.0,0.000152,7]
[353560870,1739914258823,-500.0,0.000152,7]
[353560871,1739914258832,-500.0,0.000152,7]
[353560872,1739914258842,-500.0,0.000152,7]
[353560873,1739914258851,-500.0,0.000152,7]
[353560874,1739914258861,-500.0,0.000152,7]
[353560875,1739914258870,-500.0,0.000152,7]
[353560876,1739914258880,-500.0,0.000152,7]
[353560877,1739914258889,-500.0,0.000152,7]
[353560878,1739914258899,-500.0,0.000152,7]
[353560879,1739914258911,-500.0,0.000152,7]
[353560880,1739914258921,-500.0,0.000152,7]
[353560881,1739914258930,-500.0,0.000152,7]
[353560882,1739914258939,-500.0,0.000152,7]
[353560883,1739914258948,-500.0,0.000152,7]
[353560884,1739914258958,-500.0,0.000152,7]
[353560885,1739914258967,-500.0,0.000152,7]
[353560886,1739914258976,-500.0,0.000152,7]
[353560887,1739914258986,-500.0,0.000152,7]
[353560888,1739914258995,-500.0,0.000152,7]
[353560889,1739914259004,-500.0,0.000152,7]
[353560890,1739914259013,-500.0,0.000152,7]
[353560891,1739914259025,-500.0,0.000152,7]
[353560892,1739914259035,-500.0,0.000152,7]
[353560893,1739914259044,-500.0,0.000152,7]
[353560894,1739914259053,-252.96,0.000152,7]
[353560895,1739914259064,-500.0,0.000152,7]
[353560896,1739914259074,-1000.0,0.00015221,2]
[353560897,1739914259083,-1064.25,0.0001526,2]
[353560898,1739914259094,-534.797149,0.0001526,2]
[353560899,1739914259105,-643.08,0.0001526,2]
[353560900,1739914259115,-500.0,0.0001526,2]
[353560901,1739914259124,-816.32,0.0001526,2]
[353560902,1739914259133,-500.0,0.0001526,2]
[353560903,1739914259143,-500.0,0.0001526,2]
[353560904,1739914259152,-521.98,0.0001526,2]
[353560905,1739914259163,-500.0,0.0001526,2]
[353560906,1739914259172,-772.18,0.0001526,2]
[353560907,1739914259181,-499.17326262,0.0001526,2]
[353560908,1739914259190,-506.94,0.0001526,2]
[353560909,1739914259199,-500.0,0.0001526,2]
[353560910,1739914259208,-975.67,0.0001526,2]
[353560911,1739914259218,-546.38,0.0001526,2]
[353560912,1739914259227,-500.0,0.0001526,2]
[353560913,1739914259237,-1280.38,0.0001526,2]
[353560914,1739914259247,-703.38,0.0001526,2]
[353560915,1739914259256,-614.31,0.0001526,2]
[353560916,1739914259266,-737.48,0.0001526,2]
[353560917,1739914259277,-622.56,0.0001526,2]
[353560918,1739914259286,-26318.55,0.0001526,2]
[353560919,1739914259296,-1068.88,0.0001526,2]
[353560920,1739914259305,-700.06,0.0001526,2]
[353560921,1739914259315,-723.02,0.0001526,2]
[353560922,1739914259324,-563.52215841,0.0001526,2]
[353560923,1739914259334,-1820.28,0.0001526,2]
[353560924,1739914259343,-500.0,0.0001526,2]
[353560925,1739914259353,-2563.76,0.0001526,2]
[353560926,1739914259363,-3155.81,0.0001526,2]
[353560927,1739914259372,-1599.57,0.0001526,2]
[353560928,1739914259381,-1715.22,0.0001526,2]
[353560929,1739914259390,-8846.61,0.0001526,2]
[353560930,1739914259400,-1738.43,0.0001526,2]
[353560931,1739914259410,-807.83,0.0001526,2]
[353560932,1739914259420,-753.92,0.0001526,2]
[353560933,1739914259429,-500.0,0.0001526,2]
[353560934,1739914259439,-500.0,0.0001526,2]
[353560935,1739914259448,-599.33,0.0001526,2]
[353560936,1739914259457,-781.09,0.0001526,2]
[353560937,1739914259466,-837.18,0.0001526,2]
[353560938,1739914259476,-983.07,0.0001526,2]
[353560939,1739914259485,-150.27,0.00015287,2]
[353560940,1739914259495,-500.0,0.00015287,2]
[353560941,1739914259505,-500.0,0.00015287,2]
[353560942,1739914259515,-150.27,0.00015287,2]
[353560943,1739914259525,-150.27,0.00015287,2]
[353560944,1739914259534,-150.27,0.00015287,2]
[353560945,1739914259544,-650.47016863,0.00015287,2]
[353560946,1739914259554,-500.0,0.00015287,2]
[353560947,1739914259564,-500.0,0.00015287,2]
[353560948,1739914259574,-500.0,0.00015287,2]
[353560949,1739914259584,-887.36465599,0.00015287,2]
[353560950,1739914259594,-989.42284431,0.00015287,2]
[353560951,1739914259604,-168.26106217,0.00015315,2]
[353560952,1739914259614,-1064.25,0.00015342,2]
[353560953,1739914259623,-643.08,0.00015342,2]
[353560954,1739914259632,-500.0,0.00015342,2]
[353560955,1739914259641,-816.32,0.00015342,2]
[353560956,1739914259651,-500.0,0.00015342,2]
[353560957,1739914259661,-500.0,0.00015342,2]
[353560958,1739914259671,-521.98,0.00015342,2]
[353560959,1739914259680,-500.0,0.00015342,2]
[353560960,1739914259690,-772.18,0.00015342,2]
[353560961,1739914259700,-506.94,0.00015342,2]
[353560962,1739914259710,-500.0,0.00015342,2]
[353560963,1739914259719,-975.67,0.00015342,2]
[353560964,1739914259729,-546.38,0.00015342,2]
[353560965,1739914259738,-647.121979,0.00015342,2]
[353560966,1739914259748,-647.121979,0.00015342,2]
[353560967,1739914259757,-1280.38,0.00015342,2]
[353560968,1739914259767,-267.607392,0.00015342,2]
[353560969,1739914259777,-703.38,0.00015342,2]
[353560970,1739914259786,-267.607392,0.00015342,2]
[353560971,1739914259796,-614.31,0.00015342,2]
[353560972,1739914259805,-737.48,0.00015342,2]
[353560973,1739914259815,-151.0,0.00015342,2]
[353560974,1739914259938,-622.56,0.00015342,2]
[353560975,1739914259949,-26318.55,0.00015342,2]
[353560976,1739914259959,-1068.88,0.00015342,2]
[353560977,1739914259968,-700.06,0.00015342,2]
[353560978,1739914259979,-723.02,0.00015342,2]
[353560979,1739914259989,-1820.28,0.00015342,2]
[353560980,1739914259999,-500.0,0.00015342,2]
[353560981,1739914260009,-2563.76,0.00015342,2]
[353560982,1739914260019,-3155.81,0.00015342,2]
[353560983,1739914260032,-1599.57,0.00015342,2]
[353560984,1739914260041,-1715.22,0.00015342,2]
[353560985,1739914260051,-8846.61,0.00015342,2]
[353560986,1739914260061,-1738.43,0.00015342,2]
[353560987,1739914260071,-807.83,0.00015342,2]
[353560988,1739914260080,-753.92,0.00015342,2]
[353560989,1739914260090,-500.0,0.00015342,2]
[353560990,1739914260100,-500.0,0.00015342,2]
[353560991,1739914260110,-599.33,0.00015342,2]
[353560992,1739914260119,-781.09,0.00015342,2]
[353560993,1739914260129,-837.18,0.00015342,2]
[353560994,1739914260139,-983.07,0.00015342,2]
[353560995,1739914260149,-1424.00008562,0.00015394,2]
[353560996,1739914260160,-622.0,0.000154,2]
[353560997,1739914260169,-500.16756516,0.00015421,2]
[353560998,1739914260179,-1064.25,0.00015424,2]
[353560999,1739914260188,-643.08,0.00015424,2]
[353561000,1739914260198,-151.0,0.00015424,2]
[353561001,1739914260207,-486.03,0.00015424,2]
[353561002,1739914260217,-816.32,0.00015424,2]
[353561003,1739914260226,-500.0,0.00015424,2]
[353561004,1739914260236,-500.0,0.00015424,2]
[353561005,1739914260246,-521.98,0.00015424,2]
[353561006,1739914260256,-500.0,0.00015424,2]
[353561007,1739914260266,-772.18,0.00015424,2]
[353561008,1739914260275,-506.94,0.00015424,2]
[353561009,1739914260285,-500.0,0.00015424,2]
[353561010,1739914260295,-975.67,0.00015424,2]
[353561011,1739914260304,-546.38,0.00015424,2]
[353561012,1739914260314,-1280.38,0.00015424,2]
[353561013,1739914260324,-703.38,0.00015424,2]
[353561014,1739914260334,-614.31,0.00015424,2]
[353561015,1739914260343,-737.48,0.00015424,2]
[353561016,1739914260353,-622.56,0.00015424,2]
[353561017,1739914260363,-26318.55,0.00015424,2]
[353561018,1739914260375,-1068.88,0.00015424,2]
[353561019,1739914260386,-700.06,0.00015424,2]
[353561020,1739914260396,-723.02,0.00015424,2]
[353561021,1739914260406,-1820.28,0.00015424,2]
[353561022,1739914260417,-500.0,0.00015424,2]
[353561023,1739914260427,-2563.76,0.00015424,2]
[353561024,1739914260437,-3155.81,0.00015424,2]
[353561025,1739914260447,-1599.57,0.00015424,2]
[353561026,1739914260459,-1715.22,0.00015424,2]
[353561027,1739914260473,-1738.43,0.00015424,2]
[353561028,1739914260483,-8846.61,0.00015424,2]
[353561029,1739914260493,-807.83,0.00015424,2]
[353561030,1739914260503,-753.92,0.00015424,2]
[353561031,1739914260513,-500.0,0.00015424,2]
[353561032,1739914260523,-500.0,0.00015424,2]
[353561033,1739914260533,-599.33,0.00015424,2]
[353561034,1739914260543,-781.09,0.00015424,2]
[353561035,1739914260553,-837.18,0.00015424,2]
[353561036,1739914260562,-983.07,0.00015424,2]
[353561037,1739914260572,-250.0,0.00015461,2]
[353561038,1739914260582,-167.0,0.00015461,2]
[353561039,1739914260591,-307.11,0.00015461,2]
[353561040,1739914260601,-349.0,0.00015461,2]
[353561041,1739914260611,-314.0,0.00015461,2]
[353561042,1739914260621,-349.0,0.00015461,2]
[353561043,1739914260631,-314.0,0.00015461,2]
[353561044,1739914260640,-349.0,0.00015461,2]
[353561045,1739914260650,-314.0,0.00015461,2]
[353561046,1739914260660,-349.0,0.00015461,2]
[353561047,1739914260669,-314.0,0.00015461,2]
[353561048,1739914260679,-349.0,0.00015461,2]
[353561049,1739914260688,-314.0,0.00015461,2]
[353561050,1739914260698,-349.0,0.00015461,2]
[353561051,1739914260708,-314.0,0.00015461,2]
[353561052,1739914260717,-349.0,0.00015461,2]
[353561053,1739914260726,-314.0,0.00015461,2]